fUSD/lending_fUSD_20260323
["ID","MTS","AMOUNT","RATE_DAILY","PERIOD"]
[408792782,1774277454099,-150.0,0.00017641,2]
[408792784,1774277454109,-787.83165234,0.000177,2]
[408792786,1774277454119,-403.0,0.000177,5]
[408792788,1774277454131,-152.0,0.00017765,8]
[408792790,1774277454142,-860.64,0.00017772,2]
[408792792,1774277454153,-246.70031231,0.00017777,2]
[408792794,1774277454163,-224.40258021,0.00017777,2]
[408792796,1774277454173,-181.69910248,0.00017777,2]
[408792798,1774277454183,-150.0,0.00017777,2]
[408792800,1774277454193,-587.48569977,0.00017777,2]
[408792802,1774277454204,-299.63728423,0.00017777,2]
[408792804,1774277454214,-150.0,0.00017777,2]
[408792807,1774277454225,-150.53323122,0.00017777,2]
[408792809,1774277454235,-226.32185808,0.00017777,2]
[408792811,1774277454246,-466.13,0.000178,2]
[408792813,1774277454256,-1724.1,0.00017808,2]
[408792815,1774277454267,-800.0,0.00017808,2]
[408792817,1774277454277,-150.0,0.00017866,2]
[408792819,1774277454287,-700.0,0.00017918,7]
[408792821,1774277454302,-246.70031231,0.00017939,2]
[408792823,1774277454313,-224.40258021,0.00017939,2]
[408792826,1774277454323,-181.69910248,0.00017939,2]
[408792828,1774277454334,-587.48569977,0.00017939,2]
[408792830,1774277454344,-299.63728423,0.00017939,2]
[408792832,1774277454354,-150.53323122,0.00017939,2]
[408792834,1774277454364,-226.32185808,0.00017939,2]
[408792836,1774277454374,-150.0,0.0001799,2]
[408792838,1774277454384,-300.0,0.00017999,2]
[408792840,1774277454395,-300.0,0.00017999,2]
[408792842,1774277454405,-300.0,0.00017999,2]
[408792844,1774277454415,-300.0,0.00017999,2]
[408792846,1774277454425,-300.0,0.00017999,2]
[408792848,1774277454435,-300.0,0.00017999,2]
[408792850,1774277454446,-150.0,0.00017999,2]
[408792851,1774277454456,-150.0,0.00017999,2]
[408792852,1774277454466,-150.0,0.00017999,2]
[408792853,1774277454475,-150.0,0.00017999,2]
[408792854,1774277454486,-150.0,0.00017999,2]
[408792856,1774277454496,-150.0,0.00017999,2]
[408792858,1774277454506,-150.0,0.00017999,2]
[408792860,1774277454518,-150.0,0.00017999,2]
[408792862,1774277454528,-150.0,0.00017999,2]
[408792864,1774277454538,-222.57846504,0.00017999,2]
[408792866,1774277454547,-150.0,0.00018,2]
[408792869,1774277454559,-9749.87944217,0.00018,5]
[408792871,1774277454568,-309.27107728,0.00018,2]
[408792873,1774277454578,-152.39372009,0.00018,2]
[408792875,1774277454588,-1001.24464794,0.00018,2]
[408792877,1774277454598,-500.0,0.00018,2]
[408792879,1774277454608,-134185.12690004,0.00018,5]
[408792881,1774277454618,-524.69,0.00018,2]
[408792883,1774277454628,-560.21,0.00018,2]
[408792885,1774277454639,-712.55,0.00018,2]
[408792887,1774277454649,-692.83,0.00018,2]
[408792889,1774277454659,-200.0,0.00018,2]
[408792891,1774277454669,-195.0,0.00018023,2]
[408792894,1774277454679,-150.0,0.00018031,2]
[408792896,1774277454689,-150.0,0.00018051,2]
[408792898,1774277454699,-1724.1,0.00018082,2]
[408792900,1774277454709,-151.5738,0.000181,2]
[408792902,1774277454719,-246.70031231,0.00018101,2]
[408792904,1774277454730,-224.40258021,0.00018101,2]
[408792906,1774277454741,-181.69910248,0.00018101,2]
[408792908,1774277454751,-587.48569977,0.00018101,2]
[408792910,1774277454762,-299.63728423,0.00018101,2]
[408792913,1774277454772,-150.53323122,0.00018101,2]
[408792915,1774277454782,-226.32185808,0.00018101,2]
[408792917,1774277454792,-150.0,0.00018133,2]
[408792919,1774277454803,-247.51028675,0.00018182,120]
[408792921,1774277454813,-1000.0,0.00018192,7]
[408792923,1774277454823,-3464.08,0.000182,2]
[408792925,1774277454833,-503.75933748,0.0001824,2]
[408792927,1774277454844,-246.70031231,0.00018262,2]
[408792929,1774277454855,-224.40258021,0.00018262,2]
[408792932,1774277454865,-181.69910248,0.00018262,2]
[408792934,1774277454875,-587.48569977,0.00018262,2]
[408792936,1774277454885,-299.63728423,0.00018262,2]
[408792938,1774277454895,-150.53323122,0.00018262,2]
[408792940,1774277454906,-226.32185808,0.00018262,2]
[408792942,1774277454916,-150.0,0.00018285,2]
[408792944,1774277454926,-502.0,0.00018286,5]
[408792946,1774277454936,-1724.1,0.00018356,2]
[408792948,1774277454946,-275.01142973,0.00018395,120]
[408792950,1774277454956,-150.0,0.000184,2]
[408792952,1774277454968,-246.70031231,0.00018424,2]
[408792954,1774277454980,-224.40258021,0.00018424,2]
[408792956,1774277454990,-181.69910248,0.00018424,2]
[408792958,1774277455001,-587.48569977,0.00018424,2]
[408792961,1774277455012,-299.63728423,0.00018424,2]
[408792963,1774277455022,-150.53323122,0.00018424,2]
[408792965,1774277455033,-226.32185808,0.00018424,2]
[408792967,1774277455043,-152.0,0.00018461,9]
[408792969,1774277455054,-150.0,0.00018461,2]
[408792971,1774277455064,-159.343412,0.00018466,2]
[408792973,1774277455074,-6453.0,0.0001853,2]
[408792975,1774277455084,-150.0,0.00018539,2]
[408792977,1774277455094,-246.70031231,0.00018585,2]
[408792979,1774277455105,-224.40258021,0.00018585,2]
[408792981,1774277455115,-181.69910248,0.00018585,2]
[408792983,1774277455126,-587.48569977,0.00018585,2]
[408792986,1774277455136,-299.63728423,0.00018585,2]
[408792988,1774277455147,-150.53323122,0.00018585,2]
[408792990,1774277455158,-226.32185808,0.00018585,2]
[408792992,1774277455167,-1724.1,0.0001863,2]
[408792994,1774277455177,-159.64,0.00018635,2]
[408792996,1774277455187,-150.0,0.00018666,2]
[408792998,1774277455198,-466.13,0.000187,2]
[408793000,1774277455208,-5000.0,0.00018719,30]
[408793002,1774277455218,-246.70031231,0.00018747,2]
[408793004,1774277455229,-224.40258021,0.00018747,2]
[408793007,1774277455239,-181.69910248,0.00018747,2]
[408793009,1774277455250,-587.48569977,0.00018747,2]
[408793011,1774277455263,-299.63728423,0.00018747,2]
[408793013,1774277455272,-150.53323122,0.00018747,2]
[408793015,1774277455283,-226.32185808,0.00018747,2]
[408793017,1774277455294,-185.80653218,0.00018768,7]
[408793019,1774277455304,-150.0,0.00018793,2]
[408793021,1774277455314,-199.83,0.000188,13]
[408793023,1774277455323,-316.77233318,0.00018844,7]
[408793025,1774277455333,-150.0,0.00018871,2]
[408793027,1774277455343,-621.78829552,0.00018876,2]
[408793029,1774277455352,-5718.58,0.00018904,2]
[408793031,1774277455363,-1238.0,0.00018904,2]
[408793033,1774277455373,-1724.1,0.00018904,2]
[408793035,1774277455383,-800.89202433,0.00018904,2]
[408793038,1774277455393,-246.70031231,0.00018909,2]
[408793040,1774277455403,-224.40258021,0.00018909,2]
[408793042,1774277455413,-181.69910248,0.00018909,2]
[408793044,1774277455423,-587.48569977,0.00018909,2]
[408793046,1774277455433,-299.63728423,0.00018909,2]
[408793048,1774277455443,-150.53323122,0.00018909,2]
[408793050,1774277455453,-226.32185808,0.00018909,2]
[408793052,1774277455464,-150.0,0.00018933,2]
[408793054,1774277455474,-150.0,0.00018999,2]
[408793056,1774277455484,-150.0,0.00019,2]
[408793058,1774277455494,-500.0,0.00019,2]
[408793060,1774277455505,-1000.0,0.00019,2]
[408793062,1774277455519,-400.0,0.00019,2]
[408793064,1774277455528,-524.69,0.00019,2]
[408793066,1774277455538,-560.21,0.00019,2]
[408793068,1774277455548,-712.55,0.00019,2]
[408793071,1774277455560,-692.83,0.00019,2]
[408793073,1774277455570,-361.23060898,0.0001901,7]
[408793075,1774277455579,-700.0,0.00019014,7]
[408793077,1774277455590,-195.0,0.00019023,2]
[408793079,1774277455600,-150.0,0.00019047,2]
[408793081,1774277455610,-246.70031231,0.0001907,2]
[408793083,1774277455620,-224.40258021,0.0001907,2]
[408793085,1774277455630,-181.69910248,0.0001907,2]
[408793087,1774277455640,-587.48569977,0.0001907,2]
[408793089,1774277455651,-299.63728423,0.0001907,2]
[408793091,1774277455661,-150.53323122,0.0001907,2]
[408793094,1774277455671,-226.32185808,0.0001907,2]
[408793096,1774277455681,-502.0,0.00019143,6]
[408793098,1774277455692,-152.0,0.00019156,10]
[408793100,1774277455702,-233.49889872,0.00019156,5]
[408793102,1774277455712,-1724.1,0.00019178,2]
[408793104,1774277455722,-353.0,0.00019178,2]
[408793106,1774277455731,-500.0,0.00019178,30]
[408793108,1774277455741,-647.54102765,0.00019178,2]
[408793110,1774277455751,-500.0,0.00019178,30]
[408793112,1774277455762,-500.0,0.00019178,30]
[408793114,1774277455772,-500.0,0.00019178,30]
[408793116,1774277455781,-500.0,0.00019178,30]
[408793118,1774277455791,-500.0,0.00019178,30]
[408793120,1774277455801,-500.0,0.00019178,30]
[408793122,1774277455811,-500.0,0.00019178,30]
[408793124,1774277455821,-500.0,0.00019178,30]
[408793126,1774277455831,-478.95156033,0.00019178,30]
[408793128,1774277455841,-151.0,0.00019178,2]
[408793130,1774277455851,-151.0,0.00019178,2]
[408793132,1774277455861,-151.0,0.00019178,2]
[408793134,1774277455871,-151.0,0.00019178,2]
[408793136,1774277455881,-151.0,0.00019178,2]
[408793138,1774277455892,-151.0,0.00019178,2]
[408793140,1774277455902,-151.0,0.00019178,2]
[408793143,1774277455913,-151.0,0.00019178,2]
[408793145,1774277455922,-151.0,0.00019178,2]
[408793146,1774277455932,-151.0,0.00019178,2]
[408793148,1774277455942,-151.0,0.00019178,2]
[408793151,1774277455952,-151.0,0.00019178,2]
[408793153,1774277455963,-151.0,0.00019178,2]
[408793155,1774277455973,-151.0,0.00019178,2]
[408793157,1774277455983,-151.0,0.00019178,2]
[408793159,1774277455993,-151.0,0.00019178,2]
[408793161,1774277456002,-151.0,0.00019178,2]
[408793163,1774277456013,-151.0,0.00019178,2]
[408793165,1774277456023,-151.0,0.00019178,2]
[408793167,1774277456032,-151.0,0.00019178,2]
[408793169,1774277456042,-151.0,0.00019178,2]
[408793171,1774277456052,-151.0,0.00019178,2]
[408793173,1774277456062,-151.0,0.00019178,2]
[408793175,1774277456073,-151.0,0.00019178,2]
[408793177,1774277456084,-211.499648,0.00019178,2]
[408793179,1774277456094,-154.011302,0.00019178,3]
[408793181,1774277456104,-151.0,0.00019178,2]
[408793183,1774277456113,-151.0,0.00019178,2]
[408793185,1774277456123,-151.0,0.00019178,2]
[408793187,1774277456133,-151.0,0.00019178,2]
[408793189,1774277456143,-151.0,0.00019178,2]
[408793191,1774277456154,-151.0,0.00019178,2]
[408793193,1774277456163,-151.0,0.00019178,2]
[408793195,1774277456173,-151.0,0.00019178,2]
[408793197,1774277456183,-151.0,0.00019178,2]
[408793199,1774277456194,-151.0,0.00019178,2]
[408793201,1774277456204,-151.0,0.00019178,2]
[408793203,1774277456215,-211.669559,0.00019178,2]
[408793205,1774277456226,-229.034624,0.00019178,2]
[408793207,1774277456236,-229.034624,0.00019178,2]
[408793209,1774277456246,-229.034624,0.00019178,2]
[408793211,1774277456256,-229.034624,0.00019178,2]
[408793213,1774277456269,-229.034624,0.00019178,2]
[408793215,1774277456280,-229.034624,0.00019178,2]
[408793217,1774277456290,-229.034624,0.00019178,2]
[408793220,1774277456301,-229.034624,0.00019178,2]
[408793222,1774277456310,-229.034624,0.00019178,2]
[408793224,1774277456320,-229.034624,0.00019178,2]
[408793226,1774277456330,-229.034624,0.00019178,2]
[408793228,1774277456340,-229.034624,0.00019178,2]
[408793229,1774277456350,-229.034624,0.00019178,2]
[408793248,1774277456360,-229.034624,0.00019178,2]
[408793251,1774277456546,-229.034624,0.00019178,2]
[408793253,1774277456556,-229.034624,0.00019178,2]
[408793255,1774277456565,-229.034624,0.00019178,2]
[408793257,1774277456575,-229.034624,0.00019178,2]
[408793258,1774277456584,-229.034624,0.00019178,2]
[408793260,1774277456596,-229.03463,0.00019178,2]
[408793262,1774277456606,-269.045128,0.00019178,2]
[408793264,1774277456615,-269.045128,0.00019178,2]
[408793266,1774277456624,-269.045128,0.00019178,2]
[408793268,1774277456634,-269.045128,0.00019178,2]
[408793270,1774277456643,-269.045128,0.00019178,2]
[408793272,1774277456653,-269.045128,0.00019178,2]
[408793274,1774277456663,-269.045128,0.00019178,2]
[408793276,1774277456673,-269.045128,0.00019178,2]
[408793278,1774277456683,-269.045128,0.00019178,2]
[408793280,1774277456694,-269.045128,0.00019178,2]
[408793282,1774277456703,-269.045128,0.00019178,2]
[408793284,1774277456712,-269.045128,0.00019178,2]
[408793286,1774277456722,-269.045128,0.00019178,2]
[408793288,1774277456731,-269.045128,0.00019178,2]
[408793290,1774277456741,-269.045128,0.00019178,2]
[408793292,1774277456750,-269.045128,0.00019178,2]
[408793294,1774277456762,-269.045128,0.00019178,2]
[408793296,1774277456772,-269.045128,0.00019178,2]
[408793298,1774277456782,-269.045128,0.00019178,2]
[408793300,1774277456791,-269.045124,0.00019178,2]
[408793302,1774277456800,-150.0,0.00019178,2]
[408793304,1774277456809,-150.0,0.00019178,2]
[408793306,1774277456818,-500.0,0.00019199,2]
[408793308,1774277456828,-500.0,0.00019199,2]
[408793310,1774277456838,-500.0,0.00019199,2]
[408793312,1774277456847,-1606.46,0.00019199,2]
[408793314,1774277456857,-500.0,0.00019199,2]
[408793316,1774277456866,-300.0,0.00019199,2]
[408793318,1774277456876,-300.0,0.00019199,2]
[408793320,1774277456887,-300.0,0.00019199,2]
[408793322,1774277456896,-300.0,0.00019199,2]
[408793324,1774277456906,-300.0,0.00019199,2]
[408793326,1774277456915,-150.0,0.00019199,4]
[408793328,1774277456926,-150.0,0.00019199,4]
[408793330,1774277456936,-98692.35,0.000192,2]
[408793332,1774277456946,-2000.0,0.000192,2]
[408793334,1774277456956,-246.70031231,0.00019232,4]
[408793336,1774277456966,-224.40258021,0.00019232,4]
[408793338,1774277456976,-181.69910248,0.00019232,4]
[408793340,1774277456985,-587.48569977,0.00019232,4]
[408793342,1774277456994,-299.63728423,0.00019232,4]
[408793344,1774277457004,-150.53323122,0.00019232,4]
[408793346,1774277457014,-226.32185808,0.00019232,4]
[408793348,1774277457024,-1613.0,0.00019232,2]
[408793350,1774277457034,-150.0,0.00019281,4]
[408793352,1774277457044,-1000.0,0.00019288,7]
[408793354,1774277457053,-3464.08,0.000193,2]
[408793356,1774277457062,-150.0,0.00019301,4]
[408793358,1774277457071,-325.3,0.00019369,2]
[408793360,1774277457081,-246.70031231,0.00019393,4]
[408793362,1774277457092,-224.40258021,0.00019393,4]
[408793364,1774277457101,-181.69910248,0.00019393,4]
[408793366,1774277457112,-587.48569977,0.00019393,4]
[408793368,1774277457121,-299.63728423,0.00019393,4]
[408793370,1774277457131,-150.53323122,0.00019393,4]
[408793372,1774277457141,-226.32185808,0.00019393,4]
[408793374,1774277457150,-1724.1,0.00019452,2]
[408793376,1774277457159,-250.0,0.00019461,2]
[408793378,1774277457168,-150.0,0.00019466,4]
[408793380,1774277457178,-246.70031231,0.00019555,4]
[408793382,1774277457187,-224.40258021,0.00019555,4]
[408793384,1774277457197,-181.69910248,0.00019555,4]
[408793386,1774277457207,-150.0,0.00019555,4]
[408793388,1774277457217,-587.48569977,0.00019555,4]
[408793390,1774277457227,-299.63728423,0.00019555,4]
[408793392,1774277457236,-150.0,0.00019555,4]
[408793394,1774277457246,-150.53323122,0.00019555,4]
[408793396,1774277457256,-226.32185808,0.00019555,4]
[408793398,1774277457268,-1000.0,0.000196,2]
[408793400,1774277457278,-200.19,0.00019658,2]
[408793401,1774277457288,-340.0,0.00019658,50]
[408793404,1774277457299,-150.0,0.00019692,4]
[408793405,1774277457308,-1000.0,0.000197,2]
[408793407,1774277457318,-246.70031231,0.00019716,4]
[408793409,1774277457328,-224.40258021,0.00019716,4]
[408793411,1774277457339,-181.69910248,0.00019716,4]
[408793413,1774277457349,-587.48569977,0.00019716,4]
[408793415,1774277457358,-299.63728423,0.00019716,4]
[408793417,1774277457367,-150.53323122,0.00019716,4]
[408793419,1774277457377,-226.32185808,0.00019716,4]
[408793421,1774277457387,-250.0,0.00019726,2]
[408793423,1774277457397,-250.0,0.00019726,2]
[408793425,1774277457406,-150.0,0.00019733,4]
[408793427,1774277457416,-150.0,0.00019809,4]
[408793429,1774277457425,-1345.0,0.00019873,2]
[408793431,1774277457435,-3515.0,0.00019873,2]
[408793433,1774277457445,-621.0,0.00019873,2]
[408793435,1774277457456,-1044.0,0.00019873,2]
[408793437,1774277457465,-1261.0,0.00019873,2]
[408793439,1774277457474,-415.0,0.00019873,2]
[408793441,1774277457484,-3761.0,0.00019873,2]
[408793442,1774277457493,-246.70031231,0.00019878,4]
[408793444,1774277457504,-224.40258021,0.00019878,4]
[408793446,1774277457518,-181.69910248,0.00019878,4]
[408793448,1774277457528,-587.48569977,0.00019878,4]
[408793450,1774277457538,-299.63728423,0.00019878,4]
[408793452,1774277457548,-150.53323122,0.00019878,4]
[408793454,1774277457559,-226.32185808,0.00019878,4]
[408793456,1774277457569,-300.0,0.00019899,2]
[408793458,1774277457579,-300.0,0.00019899,2]
[408793460,1774277457591,-307.04945632,0.00019899,2]
[408793462,1774277457600,-300.0,0.00019899,2]
[408793464,1774277457610,-300.0,0.00019899,2]
[408793466,1774277457619,-1000.0,0.000199,2]
[408793468,1774277457629,-98692.35,0.000199,2]
[408793470,1774277457638,-860.64,0.00019935,2]
[408793472,1774277457647,-300.0,0.00019949,2]
[408793474,1774277457657,-300.0,0.00019949,2]
[408793476,1774277457667,-300.0,0.00019949,2]
[408793478,1774277457677,-301064.00041613,0.0001995,15]
[408793480,1774277457686,-440.6788474,0.00019999,2]
[408793482,1774277457697,-150.0,0.00019999,4]
[408793484,1774277457707,-150.0,0.00019999,4]
[408793486,1774277457717,-150.0,0.00019999,4]
[408793488,1774277457727,-500.0,0.0002,2]
[408793490,1774277457736,-303.0,0.0002,2]
[408793492,1774277457746,-199.26875795,0.0002,120]
[408793494,1774277457756,-177.59824546,0.0002,2]
[408793496,1774277457768,-500.0,0.0002,2]
[408793498,1774277457778,-502.40860777,0.0002,10]
[408793500,1774277457787,-533.60055217,0.0002,7]
[408793502,1774277457797,-261.45711386,0.0002,30]
[408793504,1774277457807,-152.0,0.0002,2]
[408793506,1774277457817,-353.84170086,0.0002,120]
[408793508,1774277457826,-150.0,0.0002,2]
[408793510,1774277457835,-150.0,0.0002,2]
[408793512,1774277457845,-150.0,0.0002,2]
[408793514,1774277457854,-500.0,0.0002,2]
[408793516,1774277457864,-500.0,0.0002,2]
[408793518,1774277457874,-236.0,0.0002,2]
[408793520,1774277457884,-1115.23132211,0.0002,30]
[408793522,1774277457895,-2110.0,0.0002,2]
[408793524,1774277457905,-219.87,0.0002,13]
[408793526,1774277457915,-174.56,0.0002,7]
[408793528,1774277457925,-5000.0,0.0002,30]
[408793530,1774277457936,-3780.34156,0.0002,2]
[408793532,1774277457945,-899.99999901,0.0002,2]
[408793534,1774277457955,-959.052,0.0002,2]
[408793536,1774277457965,-288.7782576,0.0002,2]
[408793538,1774277457975,-152.1021,0.0002,2]
[408793540,1774277457986,-200.0,0.0002,10]
[408793542,1774277457995,-191.31,0.0002,2]
[408793544,1774277458006,-191.31,0.0002,2]
[408793546,1774277458018,-502.0,0.0002,7]
[408793548,1774277458028,-200.0,0.0002,2]
[408793550,1774277458039,-1000.0,0.0002,7]
[408793552,1774277458049,-195.0,0.00020023,2]
[408793554,1774277458059,-150.0,0.00020039,2]
[408793556,1774277458068,-246.70031231,0.0002004,4]
[408793558,1774277458078,-224.40258021,0.0002004,4]
[408793560,1774277458088,-181.69910248,0.0002004,4]
[408793562,1774277458098,-587.48569977,0.0002004,4]
[408793564,1774277458109,-299.63728423,0.0002004,4]
[408793566,1774277458119,-150.53323122,0.0002004,4]
[408793568,1774277458128,-226.32185808,0.0002004,4]
[408793570,1774277458138,-151.0,0.00020055,5]
[408793572,1774277458148,-150.0,0.00020063,4]
[408793574,1774277458158,-300.0,0.000201,10]
[408793577,1774277458168,-150.0,0.00020102,4]
[408793579,1774277458177,-700.0,0.0002011,7]
[408793581,1774277458187,-230.29,0.00020137,3]
[408793583,1774277458197,-230.29,0.00020137,3]
[408793584,1774277458206,-857.79,0.00020137,3]
[408793586,1774277458216,-246.70031231,0.00020201,4]
[408793588,1774277458225,-224.40258021,0.00020201,4]
[408793590,1774277458234,-181.69910248,0.00020201,4]
[408793592,1774277458244,-587.48569977,0.00020201,4]
[408793594,1774277458254,-299.63728423,0.00020201,4]
[408793596,1774277458265,-150.53323122,0.00020201,4]
[408793598,1774277458274,-226.32185808,0.00020201,4]
[408793600,1774277458284,-150.0,0.00020266,4]
[408793602,1774277458293,-350.0,0.00020274,2]
[408793604,1774277458302,-350.0,0.00020274,2]
[408793606,1774277458312,-162.66,0.00020274,2]
[408793608,1774277458322,-150.0,0.000203,2]
[408793610,1774277458331,-420.99,0.000203,2]
[408793612,1774277458340,-479.83,0.000203,2]
[408793614,1774277458349,-150.0,0.00020317,4]
[408793616,1774277458359,-246.70031231,0.00020363,4]
[408793617,1774277458368,-224.40258021,0.00020363,4]
[408793619,1774277458378,-181.69910248,0.00020363,4]
[408793621,1774277458387,-587.48569977,0.00020363,4]
[408793623,1774277458397,-299.63728423,0.00020363,4]
[408793625,1774277458406,-150.53323122,0.00020363,4]
[408793627,1774277458416,-226.32185808,0.00020363,4]
[408793629,1774277458425,-3080.0,0.00020383,2]
[408793631,1774277458435,-712.54,0.000204,7]
[408793633,1774277458445,-692.83,0.000204,2]
[408793634,1774277458455,-640.24,0.000204,2]
[408793635,1774277458464,-524.69,0.000204,2]
[408793636,1774277458474,-3464.08,0.000204,2]
[408793637,1774277458483,-165.06610444,0.0002041,30]
[408793638,1774277458493,-2146.55,0.000205,2]
[408793639,1774277458503,-150.0,0.00020512,4]
[408793640,1774277458515,-246.70031231,0.00020524,4]
[408793641,1774277458524,-224.40258021,0.00020524,4]
[408793642,1774277458535,-181.69910248,0.00020524,4]
[408793643,1774277458544,-587.48569977,0.00020524,4]
[408793644,1774277458555,-299.63728423,0.00020524,4]
[408793645,1774277458564,-150.53323122,0.00020524,4]
[408793646,1774277458574,-226.32185808,0.00020524,4]
[408793647,1774277458583,-150.0,0.00020532,4]
[408793648,1774277458594,-185.80653218,0.00020535,7]
[408793649,1774277458605,-397.38,0.00020557,2]
[408793651,1774277458614,-366.63,0.00020557,2]
[408793653,1774277458623,-432.36,0.00020557,2]
[408793655,1774277458633,-150.0,0.00020571,4]
[408793657,1774277458642,-246.70031231,0.00020686,4]
[408793659,1774277458651,-224.40258021,0.00020686,4]
[408793661,1774277458662,-181.69910248,0.00020686,4]
[408793663,1774277458672,-587.48569977,0.00020686,4]
[408793665,1774277458682,-299.63728423,0.00020686,4]
[408793666,1774277458692,-150.53323122,0.00020686,4]
[408793668,1774277458702,-226.32185808,0.00020686,4]
[408793670,1774277458711,-316.77233318,0.00020687,7]
[408793673,1774277458723,-300.0,0.00020699,2]
[408793674,1774277458732,-300.0,0.00020699,2]
[408793676,1774277458742,-98692.35,0.000207,2]
[408793678,1774277458751,-503.75933748,0.00020772,2]
[408793680,1774277458761,-500.0,0.00020799,2]
[408793682,1774277458771,-150.0,0.00020799,4]
[408793684,1774277458781,-150.0,0.00020799,4]
[408793686,1774277458790,-213.35124392,0.00020822,2]
[408793688,1774277458799,-450.0,0.00020822,2]
[408793690,1774277458809,-150.0,0.00020824,4]
[408793692,1774277458818,-500.0,0.00020839,2]
[408793694,1774277458828,-500.0,0.00020839,2]
[408793696,1774277458837,-246.70031231,0.00020848,4]
[408793698,1774277458846,-224.40258021,0.00020848,4]
[408793700,1774277458856,-181.69910248,0.00020848,4]
[408793702,1774277458865,-587.48569977,0.00020848,4]
[408793704,1774277458875,-299.63728423,0.00020848,4]
[408793706,1774277458885,-150.53323122,0.00020848,4]
[408793708,1774277458894,-226.32185808,0.00020848,4]
[408793710,1774277458903,-502.0,0.00020857,8]
[408793712,1774277458913,-2103.55666969,0.000209,30]
[408793714,1774277458923,-150.0,0.00020922,4]
[408793716,1774277458932,-165.00685784,0.00020932,120]
[408793718,1774277458942,-150.0,0.0002099,2]
[408793720,1774277458951,-500.0,0.00020999,2]
[408793722,1774277458960,-500.0,0.00020999,2]
[408793724,1774277458970,-1606.46,0.00020999,2]
[408793726,1774277458979,-522.2172541,0.00020999,2]
[408793728,1774277458989,-150.0,0.00020999,4]
[408793730,1774277458998,-198.2263952,0.00021,2]
[408793732,1774277459007,-160.0,0.00021,7]
[408793734,1774277459019,-213.9,0.00021,2]
[408793736,1774277459029,-213.9,0.00021,2]
[408793738,1774277459038,-600.3306638,0.00021,30]
[408793740,1774277459048,-500.0,0.00021002,2]
[408793742,1774277459057,-900.0,0.00021002,2]
[408793744,1774277459067,-900.0,0.00021002,2]
[408793746,1774277459076,-800.0,0.00021002,2]
[408793748,1774277459086,-513.04755053,0.00021002,2]
[408793751,1774277459097,-773.60915269,0.00021002,2]
[408793753,1774277459108,-518.41585271,0.00021002,2]
[408793755,1774277459118,-570.68035259,0.00021002,2]
[408793757,1774277459128,-583.99711626,0.00021002,2]
[408793759,1774277459138,-998.74897956,0.00021002,2]
[408793761,1774277459148,-840.72000585,0.00021002,2]
[408793763,1774277459157,-500.0,0.00021002,2]
[408793765,1774277459167,-509.71541908,0.00021002,2]
[408793767,1774277459178,-772.52837812,0.00021002,2]
[408793769,1774277459189,-500.0,0.00021002,2]
[408793771,1774277459199,-528.72703549,0.00021002,2]
[408793773,1774277459209,-981.27808033,0.00021002,2]
[408793775,1774277459219,-246.70031231,0.00021009,4]
[408793777,1774277459229,-224.40258021,0.00021009,4]
[408793779,1774277459239,-181.69910248,0.00021009,4]
[408793782,1774277459251,-587.48569977,0.00021009,4]
[408793784,1774277459261,-299.63728423,0.00021009,4]
[408793786,1774277459271,-150.53323122,0.00021009,4]
[408793788,1774277459281,-226.32185808,0.00021009,4]